[Event "Early-Titled-Tuesday-Blitz-May-28-2024"]
[Site "Chess.com"]
[Date "2024.05.28"]
[Round "3"]
[White "GothamChess"]
[Black "FairChess_on_YouTube"]
[Result "0-1"]
[WhiteElo "2788"]
[BlackElo "3083"]
[TimeControl "180+1"]
[EndTime "8:29:30 PDT"]
[Termination "FairChess_on_YouTube won on time"]

1. e4 {[%clk 0:03:00.9]} 1... e5 {[%clk 0:02:54.1]} 2. Nf3 {[%clk 0:03:00.7]}
2... Nc6 {[%clk 0:02:53.9]} 3. c3 {[%clk 0:03:00.6]} 3... d5 {[%clk 0:02:42.1]}
4. Qa4 {[%clk 0:03:00.1]} 4... Qd6 {[%clk 0:02:34.5]} 5. d4 {[%clk 0:02:52.2]}
5... exd4 {[%clk 0:02:28.3]} 6. e5 {[%clk 0:02:45.3]} 6... Qg6 {[%clk
0:02:25.7]} 7. cxd4 {[%clk 0:02:35.7]} 7... Bd7 {[%clk 0:02:25.7]} 8. Qb3 {[%clk
0:02:27.6]} 8... Nb4 {[%clk 0:02:18.6]} 9. Na3 {[%clk 0:02:22.4]} 9... a5 {[%clk
0:02:18.1]} 10. Be2 {[%clk 0:02:08.5]} 10... Qxg2 {[%clk 0:02:09.2]} 11. Rg1
{[%clk 0:02:07.8]} 11... Qh3 {[%clk 0:02:09.8]} 12. Nb5 {[%clk 0:01:55.2]} 12...
Bxb5 {[%clk 0:01:33]} 13. Bxb5+ {[%clk 0:01:54.9]} 13... c6 {[%clk 0:01:33.6]}
14. Be2 {[%clk 0:01:42.6]} 14... a4 {[%clk 0:01:32.9]} 15. Qd1 {[%clk
0:01:21.3]} 15... Qf5 {[%clk 0:01:30.4]} 16. Kf1 {[%clk 0:01:10.7]} 16... Ne7
{[%clk 0:01:19.7]} 17. a3 {[%clk 0:01:07.7]} 17... Na6 {[%clk 0:01:09.5]} 18.
Qxa4 {[%clk 0:01:07.7]} 18... Ng6 {[%clk 0:01:08.8]} 19. Qb3 {[%clk 0:01:05.4]}
19... Qh3+ {[%clk 0:00:58.7]} 20. Ke1 {[%clk 0:01:03.2]} 20... Qd7 {[%clk
0:00:33.8]} 21. h4 {[%clk 0:01:03.2]} 21... Ne7 {[%clk 0:00:27.6]} 22. e6 {[%clk
0:00:54.7]} 22... fxe6 {[%clk 0:00:24.5]} 23. Ne5 {[%clk 0:00:55]} 23... Qc7
{[%clk 0:00:24.6]} 24. Bf4 {[%clk 0:00:52.1]} 24... Nf5 {[%clk 0:00:20.5]} 25.
Bh5+ {[%clk 0:00:50.7]} 25... g6 {[%clk 0:00:16.2]} 26. Nxg6 {[%clk 0:00:50.2]}
26... Qf7 {[%clk 0:00:16.7]} 27. Ne5 {[%clk 0:00:36.8]} 27... Qxh5 {[%clk
0:00:14.5]} 28. Qxb7 {[%clk 0:00:37.5]} 28... Nb8 {[%clk 0:00:08.7]} 29. Rg5
{[%clk 0:00:34.2]} 29... Qxh4 {[%clk 0:00:06.7]} 30. Qc8+ {[%clk 0:00:17.6]}
30... Ke7 {[%clk 0:00:06.5]} 31. Qc7+ {[%clk 0:00:17.6]} 31... Ke8 {[%clk
0:00:06.3]} 32. Qc8+ {[%clk 0:00:11.9]} 32... Ke7 {[%clk 0:00:06.8]} 33. Qb7+
{[%clk 0:00:12.3]} 33... Ke8 {[%clk 0:00:07]} 34. Qxa8 {[%clk 0:00:12.8]} 34...
Bd6 {[%clk 0:00:06.8]} 35. Qb7 {[%clk 0:00:05.3]} 35... Qxf4 {[%clk 0:00:06.7]}
36. Qf7+ {[%clk 0:00:04.9]} 36... Kd8 {[%clk 0:00:07.2]} 37. Rg8+ {[%clk
0:00:04.8]} 37... Rxg8 {[%clk 0:00:07.6]} 38. Qxg8+ {[%clk 0:00:05.7]} 38... Kc7
{[%clk 0:00:08.1]} 39. Qxh7+ {[%clk 0:00:04]} 39... Be7 {[%clk 0:00:08.2]} 40.
Qh3 {[%clk 0:00:03.8]} 40... Qxd4 {[%clk 0:00:08.1]} 41. Nf3 {[%clk 0:00:03.8]}
41... Qxb2 {[%clk 0:00:07.9]} 42. Rd1 {[%clk 0:00:03.6]} 42... Nd7 {[%clk
0:00:07.9]} 43. Qh2+ {[%clk 0:00:03.5]} 43... Bd6 {[%clk 0:00:08.4]} 44. Qh7
{[%clk 0:00:03.4]} 44... Qxa3 {[%clk 0:00:08.8]} 45. Ng5 {[%clk 0:00:03.3]}
45... Qc3+ {[%clk 0:00:08.9]} 46. Kf1 {[%clk 0:00:03.8]} 46... Qf6 {[%clk
0:00:09.6]} 47. Qg8 {[%clk 0:00:03.5]} 47... Ne3+ {[%clk 0:00:09.5]} 48. Ke2
{[%clk 0:00:03.5]} 48... Nxd1 {[%clk 0:00:10.1]} 49. Nxe6+ {[%clk 0:00:04.1]}
49... Kb6 {[%clk 0:00:10.7]} 50. Kxd1 {[%clk 0:00:03.9]} 50... Nc5 {[%clk
0:00:10.3]} 51. Nd8 {[%clk 0:00:02.9]} 51... Bc7 {[%clk 0:00:09.8]} 52. Nf7
{[%clk 0:00:02.4]} 52... Ne4 {[%clk 0:00:09.7]} 0-1

[Event "Early-Titled-Tuesday-Blitz-May-28-2024"]
[Site "Chess.com"]
[Date "2024.05.28"]
[Round "3"]
[White "RobertJFischer71"]
[Black "Daaksboy"]
[Result "1-0"]
[WhiteElo "2641"]
[BlackElo "2460"]
[TimeControl "180+1"]
[EndTime "8:29:37 PDT"]
[Termination "RobertJFischer71 won by resignation"]

1. e4 {[%clk 0:03:00.9]} 1... c5 {[%clk 0:02:59.7]} 2. Nf3 {[%clk 0:03:00.7]}
2... d6 {[%clk 0:02:59.6]} 3. d4 {[%clk 0:03:01.2]} 3... cxd4 {[%clk 0:02:59.6]}
4. Nxd4 {[%clk 0:03:02]} 4... Nf6 {[%clk 0:02:59.9]} 5. Nc3 {[%clk 0:03:02.3]}
5... a6 {[%clk 0:03:00.3]} 6. h3 {[%clk 0:03:02.3]} 6... Nc6 {[%clk 0:02:59.4]}
7. g4 {[%clk 0:03:00.2]} 7... g6 {[%clk 0:02:58.6]} 8. Be3 {[%clk 0:02:56.6]}
8... Nxd4 {[%clk 0:02:57.8]} 9. Qxd4 {[%clk 0:02:52.7]} 9... Bg7 {[%clk
0:02:57.8]} 10. Be2 {[%clk 0:02:48.7]} 10... O-O {[%clk 0:02:57.6]} 11. Qd2
{[%clk 0:02:48.8]} 11... Be6 {[%clk 0:02:54.3]} 12. g5 {[%clk 0:02:41.3]} 12...
Nd7 {[%clk 0:02:52.1]} 13. f4 {[%clk 0:02:41.8]} 13... Rc8 {[%clk 0:02:39.6]}
14. Bd4 {[%clk 0:02:41.8]} 14... Bxd4 {[%clk 0:02:12.5]} 15. Qxd4 {[%clk
0:02:42.7]} 15... Qb6 {[%clk 0:02:12.7]} 16. Qxb6 {[%clk 0:02:38.5]} 16... Nxb6
{[%clk 0:02:12.7]} 17. O-O-O {[%clk 0:02:38.6]} 17... Rxc3 {[%clk 0:02:09.2]}
18. bxc3 {[%clk 0:02:39.5]} 18... Rc8 {[%clk 0:02:08.9]} 19. Kd2 {[%clk
0:02:36.1]} 19... Na4 {[%clk 0:01:36.7]} 20. Bg4 {[%clk 0:01:40]} 20... Nxc3
{[%clk 0:01:05.8]} 21. Rde1 {[%clk 0:01:34.1]} 21... Rc4 {[%clk 0:01:02.1]} 22.
Kd3 {[%clk 0:01:25.3]} 22... b5 {[%clk 0:01:00.8]} 23. f5 {[%clk 0:01:18.9]}
23... gxf5 {[%clk 0:00:40]} 24. exf5 {[%clk 0:01:19.8]} 24... Bd5 {[%clk
0:00:40.3]} 25. Rxe7 {[%clk 0:01:11]} 25... Be4+ {[%clk 0:00:35.6]} 26. Kd2
{[%clk 0:01:10.2]} 26... Kf8 {[%clk 0:00:25.1]} 27. f6 {[%clk 0:00:28.3]} 27...
Bxh1 {[%clk 0:00:24.4]} 28. Bd7 {[%clk 0:00:28.2]} 28... Re4 {[%clk 0:00:19]}
29. Kxc3 {[%clk 0:00:27.5]} 29... Rxe7 {[%clk 0:00:18.7]} 30. fxe7+ {[%clk
0:00:28.4]} 30... Kxe7 {[%clk 0:00:18.8]} 31. Bf5 {[%clk 0:00:28.1]} 31... Bg2
{[%clk 0:00:17.7]} 32. h4 {[%clk 0:00:27.8]} 32... f6 {[%clk 0:00:15.8]} 33.
Bxh7 {[%clk 0:00:27]} 33... fxg5 {[%clk 0:00:15.4]} 34. hxg5 {[%clk 0:00:27.9]}
34... Bf3 {[%clk 0:00:14.6]} 35. Kd4 {[%clk 0:00:26.2]} 35... Ke6 {[%clk
0:00:12.9]} 36. Be4 {[%clk 0:00:20.6]} 36... Bh5 {[%clk 0:00:10]} 37. a3 {[%clk
0:00:20.3]} 37... Be8 {[%clk 0:00:08]} 38. c3 {[%clk 0:00:20.2]} 38... a5 {[%clk
0:00:07.8]} 39. Bd3 {[%clk 0:00:17.4]} 39... Bd7 {[%clk 0:00:07]} 40. Bf1 {[%clk
0:00:17.4]} 40... Be8 {[%clk 0:00:06.8]} 41. Bh3+ {[%clk 0:00:17]} 41... Kf7
{[%clk 0:00:06.6]} 42. Bf5 {[%clk 0:00:16.1]} 42... Ke7 {[%clk 0:00:06]} 43. Kd5
{[%clk 0:00:15.5]} 43... Bf7+ {[%clk 0:00:05.8]} 44. Kc6 {[%clk 0:00:15.8]}
44... Bc4 {[%clk 0:00:05.3]} 45. Kb6 {[%clk 0:00:14.6]} 45... a4 {[%clk
0:00:05.4]} 46. Kc6 {[%clk 0:00:15]} 46... Kf7 {[%clk 0:00:05]} 47. Kxd6 {[%clk
0:00:14.8]} 47... Kg7 {[%clk 0:00:04.8]} 48. Ke5 {[%clk 0:00:14.7]} 48... Kf7
{[%clk 0:00:04.3]} 49. Kd4 {[%clk 0:00:15]} 49... Kg7 {[%clk 0:00:04.4]} 50. Bd3
{[%clk 0:00:15.3]} 50... Bxd3 {[%clk 0:00:03]} 51. Kxd3 {[%clk 0:00:16.2]} 51...
Kg6 {[%clk 0:00:03.4]} 52. Kd4 {[%clk 0:00:16.9]} 52... Kxg5 {[%clk 0:00:04.1]}
53. Kc5 {[%clk 0:00:17.4]} 53... Kf4 {[%clk 0:00:01.9]} 54. Kxb5 {[%clk
0:00:17.6]} 54... Ke4 {[%clk 0:00:02.7]} 55. c4 {[%clk 0:00:17.1]} 55... Kd3
{[%clk 0:00:03.6]} 56. c5 {[%clk 0:00:17.6]} 1-0

[Event "Early-Titled-Tuesday-Blitz-May-28-2024"]
[Site "Chess.com"]
[Date "2024.05.28"]
[Round "3"]
[White "Vaathi_Coming"]
[Black "juancruzarias"]
[Result "1/2-1/2"]
[WhiteElo "2896"]
[BlackElo "2673"]
[TimeControl "180+1"]
[EndTime "8:29:39 PDT"]
[Termination "Game drawn by agreement"]

1. Nf3 {[%clk 0:02:51]} 1... d5 {[%clk 0:03:00.1]} 2. e3 {[%clk 0:02:50]} 2...
Nf6 {[%clk 0:02:59.6]} 3. d4 {[%clk 0:02:50]} 3... c5 {[%clk 0:02:58.8]} 4. Bd3
{[%clk 0:02:49.2]} 4... cxd4 {[%clk 0:02:56.4]} 5. exd4 {[%clk 0:02:48.9]} 5...
Nc6 {[%clk 0:02:56.9]} 6. c3 {[%clk 0:02:49.1]} 6... Bg4 {[%clk 0:02:57.4]} 7.
Bf4 {[%clk 0:02:48.7]} 7... Qb6 {[%clk 0:02:56.6]} 8. Qb3 {[%clk 0:02:46.9]}
8... Bxf3 {[%clk 0:02:55.1]} 9. gxf3 {[%clk 0:02:47.8]} 9... e6 {[%clk
0:02:55.8]} 10. Nd2 {[%clk 0:02:47.6]} 10... Be7 {[%clk 0:02:55.3]} 11. Bg3
{[%clk 0:02:10.2]} 11... Rc8 {[%clk 0:02:50.5]} 12. O-O {[%clk 0:02:08.9]} 12...
g6 {[%clk 0:02:49.9]} 13. Rfe1 {[%clk 0:02:07.6]} 13... O-O {[%clk 0:02:49.3]}
14. Nf1 {[%clk 0:02:05.1]} 14... Nh5 {[%clk 0:02:48.7]} 15. Ne3 {[%clk
0:02:04.9]} 15... Bg5 {[%clk 0:02:47.8]} 16. Ng4 {[%clk 0:02:02.2]} 16... Kg7
{[%clk 0:02:33.9]} 17. Bf1 {[%clk 0:01:53.3]} 17... Bf4 {[%clk 0:02:32]} 18.
Qxb6 {[%clk 0:01:41.8]} 18... axb6 {[%clk 0:02:31.8]} 19. Ne3 {[%clk 0:01:41.9]}
19... Ne7 {[%clk 0:02:21]} 20. Nc2 {[%clk 0:01:35.4]} 20... Nf5 {[%clk
0:02:18.9]} 21. Nb4 {[%clk 0:01:35.5]} 21... g5 {[%clk 0:02:13.6]} 22. Nd3
{[%clk 0:01:34.4]} 22... Nh4 {[%clk 0:02:10.5]} 23. Bg2 {[%clk 0:01:29.7]} 23...
h6 {[%clk 0:02:07.1]} 24. a4 {[%clk 0:01:14.9]} 24... Ra8 {[%clk 0:02:07.2]} 25.
Bh1 {[%clk 0:01:14.3]} 25... Rfc8 {[%clk 0:02:06.9]} 26. Ra3 {[%clk 0:01:13.4]}
26... Bc7 {[%clk 0:02:03.9]} 27. Ne5 {[%clk 0:01:09]} 27... Nf4 {[%clk
0:02:00.2]} 28. Bxf4 {[%clk 0:00:59]} 28... gxf4 {[%clk 0:01:59.9]} 29. Nd3
{[%clk 0:00:59.1]} 29... Kf6 {[%clk 0:01:58.1]} 30. Kf1 {[%clk 0:00:58.5]} 30...
Rg8 {[%clk 0:01:55.5]} 31. Ke2 {[%clk 0:00:58.5]} 31... Bd6 {[%clk 0:01:54]} 32.
Rb3 {[%clk 0:00:57.8]} 32... Bc7 {[%clk 0:01:52.5]} 33. Ra3 {[%clk 0:00:49.8]}
33... Nf5 {[%clk 0:01:52.9]} 34. Kf1 {[%clk 0:00:44]} 34... Bd6 {[%clk
0:01:46.8]} 35. Raa1 {[%clk 0:00:36.7]} 35... h5 {[%clk 0:01:46.4]} 36. Ke2
{[%clk 0:00:33.4]} 36... h4 {[%clk 0:01:44.7]} 37. h3 {[%clk 0:00:31.4]} 37...
Ra7 {[%clk 0:01:39]} 38. Rg1 {[%clk 0:00:30.7]} 38... Rxg1 {[%clk 0:01:35.8]}
39. Rxg1 {[%clk 0:00:31.6]} 39... Rxa4 {[%clk 0:01:36.2]} 40. Kd2 {[%clk
0:00:28.3]} 40... Ra8 {[%clk 0:01:32.9]} 41. Kc2 {[%clk 0:00:26.4]} 41... Bc7
{[%clk 0:01:24.9]} 42. Kb1 {[%clk 0:00:25.2]} 42... Rh8 {[%clk 0:01:23.4]} 43.
Rg4 {[%clk 0:00:24.9]} 43... Rh6 {[%clk 0:01:21.7]} 44. Bg2 {[%clk 0:00:24]}
44... Rg6 {[%clk 0:01:21.4]} 45. Bf1 {[%clk 0:00:23.2]} 45... Rxg4 {[%clk
0:01:20.7]} 46. fxg4 {[%clk 0:00:24.1]} 46... Nd6 {[%clk 0:01:21.2]} 47. Nxf4
{[%clk 0:00:23.1]} 47... Ne4 {[%clk 0:01:15]} 48. Nh5+ {[%clk 0:00:23]} 48...
Ke7 {[%clk 0:01:15.7]} 49. Kc2 {[%clk 0:00:20.8]} 49... Nxf2 {[%clk 0:01:15.7]}
50. b3 {[%clk 0:00:17.1]} 50... Ne4 {[%clk 0:01:14]} 51. Bg2 {[%clk 0:00:15.1]}
51... Ng3 {[%clk 0:01:09.6]} 52. Nxg3 {[%clk 0:00:14.8]} 52... hxg3 {[%clk
0:01:10.5]} 53. c4 {[%clk 0:00:15.2]} 53... Kd6 {[%clk 0:01:04.3]} 54. h4 {[%clk
0:00:12.9]} 54... Bd8 {[%clk 0:01:03.8]} 55. h5 {[%clk 0:00:11.9]} 55... Bg5
{[%clk 0:01:03.5]} 56. cxd5 {[%clk 0:00:11.7]} 56... exd5 {[%clk 0:01:03.6]} 57.
Kd3 {[%clk 0:00:12.1]} 57... Ke6 {[%clk 0:01:03.4]} 58. Bf3 {[%clk 0:00:12.1]}
58... Bf4 {[%clk 0:01:02.2]} 59. Bg2 {[%clk 0:00:11.7]} 59... Bg5 {[%clk
0:01:01.7]} 60. Ke2 {[%clk 0:00:11.4]} 60... Bf6 {[%clk 0:01:01.4]} 61. Ke3
{[%clk 0:00:11]} 61... Bg5+ {[%clk 0:01:00.9]} 62. Kf3 {[%clk 0:00:11.3]} 62...
Bf6 {[%clk 0:01:01.6]} 63. Kxg3 {[%clk 0:00:09]} 63... Bxd4 {[%clk 0:01:02.2]}
64. g5 {[%clk 0:00:09.6]} 64... Kf5 {[%clk 0:01:01.4]} 65. Bxd5 {[%clk
0:00:06.6]} 65... Kxg5 {[%clk 0:01:01.6]} 66. Bxf7 {[%clk 0:00:06.7]} 66... b5
{[%clk 0:01:01.4]} 67. Kh3 {[%clk 0:00:03]} 67... b4 {[%clk 0:01:01.7]} 68. Bg6
{[%clk 0:00:03.2]} 68... b6 {[%clk 0:01:01.9]} 69. Bf7 {[%clk 0:00:03.6]} 69...
Bc3 {[%clk 0:01:02.5]} 70. Bg8 {[%clk 0:00:04]} 70... Kh6 {[%clk 0:01:02.8]} 71.
Bf7 {[%clk 0:00:04.3]} 71... Kg7 {[%clk 0:01:03.3]} 72. Bg6 {[%clk 0:00:04.7]}
72... Kf6 {[%clk 0:01:03.8]} 73. Kg4 {[%clk 0:00:05.3]} 73... Kg7 {[%clk
0:01:04.3]} 74. Kh3 {[%clk 0:00:06.1]} 74... Kh6 {[%clk 0:01:04.3]} 75. Kg4
{[%clk 0:00:07]} 1/2-1/2

[Event "Early-Titled-Tuesday-Blitz-May-28-2024"]
[Site "Chess.com"]
[Date "2024.05.28"]
[Round "3"]
[White "GMthekingindian"]
[Black "TERMINATOR_PC"]
[Result "0-1"]
[WhiteElo "2364"]
[BlackElo "2596"]
[TimeControl "180+1"]
[EndTime "8:29:39 PDT"]
[Termination "TERMINATOR_PC won by checkmate"]

1. d4 {[%clk 0:03:00.9]} 1... Nf6 {[%clk 0:01:40.2]} 2. Nf3 {[%clk 0:02:58.6]}
2... e6 {[%clk 0:01:39.9]} 3. g3 {[%clk 0:02:58.4]} 3... b5 {[%clk 0:01:39.9]}
4. Bg2 {[%clk 0:02:59.3]} 4... Bb7 {[%clk 0:01:37.1]} 5. O-O {[%clk 0:03:00.2]}
5... c5 {[%clk 0:01:37]} 6. a4 {[%clk 0:02:59.2]} 6... b4 {[%clk 0:01:37.5]} 7.
c4 {[%clk 0:02:59]} 7... cxd4 {[%clk 0:01:31.6]} 8. Nxd4 {[%clk 0:02:54]} 8...
Bxg2 {[%clk 0:01:31.4]} 9. Kxg2 {[%clk 0:02:54]} 9... Qc8 {[%clk 0:01:31.6]} 10.
Qd3 {[%clk 0:02:48]} 10... Nc6 {[%clk 0:01:29.6]} 11. Nxc6 {[%clk 0:02:44.7]}
11... Qxc6+ {[%clk 0:01:28.9]} 12. Kg1 {[%clk 0:02:43.1]} 12... d5 {[%clk
0:01:26.9]} 13. Nd2 {[%clk 0:02:37.3]} 13... Be7 {[%clk 0:01:21.6]} 14. b3
{[%clk 0:02:35.7]} 14... O-O {[%clk 0:01:16.2]} 15. Bb2 {[%clk 0:02:36]} 15...
Rfd8 {[%clk 0:01:10]} 16. Qf3 {[%clk 0:02:30.2]} 16... Rac8 {[%clk 0:01:06.1]}
17. Rfd1 {[%clk 0:02:06.5]} 17... h6 {[%clk 0:01:00.2]} 18. Rac1 {[%clk
0:02:02.5]} 18... dxc4 {[%clk 0:00:58.1]} 19. Qxc6 {[%clk 0:02:02.7]} 19... Rxc6
{[%clk 0:00:53.7]} 20. Nxc4 {[%clk 0:02:03.2]} 20... Rxd1+ {[%clk 0:00:50.3]}
21. Rxd1 {[%clk 0:02:03.3]} 21... Nd5 {[%clk 0:00:44.7]} 22. e4 {[%clk
0:01:58.6]} 22... Nb6 {[%clk 0:00:44.9]} 23. Nxb6 {[%clk 0:01:50.1]} 23... axb6
{[%clk 0:00:42.6]} 24. Rd7 {[%clk 0:01:44.2]} 24... Bc5 {[%clk 0:00:34.8]} 25.
Rd8+ {[%clk 0:01:17.1]} 25... Kh7 {[%clk 0:00:34]} 26. Bd4 {[%clk 0:01:14.9]}
26... Kg6 {[%clk 0:00:21.1]} 27. Kg2 {[%clk 0:01:13.9]} 27... f6 {[%clk
0:00:19.8]} 28. Rd7 {[%clk 0:01:09.3]} 28... e5 {[%clk 0:00:19.6]} 29. Bxc5
{[%clk 0:00:44.5]} 29... bxc5 {[%clk 0:00:14.8]} 30. Rb7 {[%clk 0:00:32.4]}
30... Rd6 {[%clk 0:00:12.2]} 31. a5 {[%clk 0:00:28.8]} 31... Rd3 {[%clk
0:00:12.2]} 32. Rb5 {[%clk 0:00:19.6]} 32... Rxb3 {[%clk 0:00:10.6]} 33. Rxc5
{[%clk 0:00:20.1]} 33... Ra3 {[%clk 0:00:10.9]} 34. Rb5 {[%clk 0:00:20.7]} 34...
b3 {[%clk 0:00:11.3]} 35. a6 {[%clk 0:00:11.2]} 35... Rxa6 {[%clk 0:00:10.6]}
36. Rxb3 {[%clk 0:00:11.8]} 36... Ra4 {[%clk 0:00:10.9]} 37. f3 {[%clk
0:00:11.4]} 37... h5 {[%clk 0:00:11.6]} 38. h4 {[%clk 0:00:10.8]} 38... Ra7
{[%clk 0:00:11]} 39. Kh3 {[%clk 0:00:10.2]} 39... Kf7 {[%clk 0:00:11.4]} 40. Rc3
{[%clk 0:00:06]} 40... Ke6 {[%clk 0:00:11]} 41. Rc6+ {[%clk 0:00:05.8]} 41...
Kd7 {[%clk 0:00:11.1]} 42. Rc3 {[%clk 0:00:06.7]} 42... Rc7 {[%clk 0:00:11.1]}
43. Rxc7+ {[%clk 0:00:05.3]} 43... Kxc7 {[%clk 0:00:12]} 44. g4 {[%clk
0:00:05.5]} 44... g6 {[%clk 0:00:11]} 45. gxh5 {[%clk 0:00:02.6]} 45... gxh5
{[%clk 0:00:11.9]} 46. Kg3 {[%clk 0:00:03.2]} 46... Kc6 {[%clk 0:00:12.1]} 47.
f4 {[%clk 0:00:01.9]} 47... Kc5 {[%clk 0:00:12.7]} 48. fxe5 {[%clk 0:00:02]}
48... fxe5 {[%clk 0:00:13.1]} 49. Kf2 {[%clk 0:00:02]} 49... Kd4 {[%clk
0:00:13.3]} 50. Kf3 {[%clk 0:00:02]} 50... Kd3 {[%clk 0:00:14]} 51. Kf2 {[%clk
0:00:02.5]} 51... Kxe4 {[%clk 0:00:14.7]} 52. Ke2 {[%clk 0:00:03]} 52... Kf4
{[%clk 0:00:15.4]} 53. Kd3 {[%clk 0:00:03.5]} 53... Kg4 {[%clk 0:00:15.5]} 54.
Ke4 {[%clk 0:00:03.7]} 54... Kxh4 {[%clk 0:00:16.4]} 55. Kxe5 {[%clk 0:00:04.6]}
55... Kg3 {[%clk 0:00:17]} 56. Ke4 {[%clk 0:00:05.2]} 56... h4 {[%clk
0:00:17.7]} 57. Ke3 {[%clk 0:00:03.5]} 57... h3 {[%clk 0:00:18.3]} 58. Ke2
{[%clk 0:00:04.1]} 58... h2 {[%clk 0:00:18.7]} 59. Kf1 {[%clk 0:00:05]} 59...
h1=Q+ {[%clk 0:00:19.2]} 60. Ke2 {[%clk 0:00:04.2]} 60... Qf3+ {[%clk
0:00:19.8]} 61. Kd2 {[%clk 0:00:04.9]} 61... Kf4 {[%clk 0:00:20.2]} 62. Ke1
{[%clk 0:00:05.8]} 62... Qg2 {[%clk 0:00:20.2]} 63. Kd1 {[%clk 0:00:06]} 63...
Ke3 {[%clk 0:00:20.9]} 64. Ke1 {[%clk 0:00:06.9]} 64... Qg1# {[%clk 0:00:21.1]}
0-1

[Event "Early-Titled-Tuesday-Blitz-May-28-2024"]
[Site "Chess.com"]
[Date "2024.05.28"]
[Round "3"]
[White "KogotBobra17"]
[Black "crescentmoon2411"]
[Result "0-1"]
[WhiteElo "2654"]
[BlackElo "2890"]
[TimeControl "180+1"]
[EndTime "8:29:43 PDT"]
[Termination "crescentmoon2411 won on time"]

1. f4 {[%clk 0:03:00.9]} 1... d5 {[%clk 0:02:57.6]} 2. Nf3 {[%clk 0:03:00.8]}
2... c6 {[%clk 0:02:58.5]} 3. g3 {[%clk 0:03:01]} 3... g6 {[%clk 0:02:58.8]} 4.
Bg2 {[%clk 0:03:01.3]} 4... Bg7 {[%clk 0:02:59.7]} 5. O-O {[%clk 0:03:01.7]}
5... Nf6 {[%clk 0:03:00.6]} 6. d3 {[%clk 0:03:02.1]} 6... h5 {[%clk 0:03:01.3]}
7. Nc3 {[%clk 0:03:00.2]} 7... Bg4 {[%clk 0:03:01.4]} 8. e4 {[%clk 0:02:59.4]}
8... h4 {[%clk 0:03:01]} 9. e5 {[%clk 0:02:39.2]} 9... hxg3 {[%clk 0:02:59.9]}
10. exf6 {[%clk 0:02:09.8]} 10... Bxf6 {[%clk 0:02:57.7]} 11. Ne2 {[%clk
0:01:59]} 11... Qb6+ {[%clk 0:02:47.6]} 12. d4 {[%clk 0:01:58.3]} 12... gxh2+
{[%clk 0:02:45.5]} 13. Kh1 {[%clk 0:01:58.4]} 13... Nd7 {[%clk 0:02:45.6]} 14.
c3 {[%clk 0:01:27.8]} 14... Bxf3 {[%clk 0:02:41.4]} 15. Rxf3 {[%clk 0:01:26.9]}
15... e6 {[%clk 0:02:40.6]} 16. Be3 {[%clk 0:01:22.8]} 16... Qxb2 {[%clk
0:02:32.7]} 17. Rb1 {[%clk 0:01:22.4]} 17... Qxa2 {[%clk 0:02:32.4]} 18. Rxb7
{[%clk 0:01:22.6]} 18... Qa6 {[%clk 0:02:26.7]} 19. Rb1 {[%clk 0:01:19.7]} 19...
Qc8 {[%clk 0:02:15.9]} 20. Rh3 {[%clk 0:01:02.5]} 20... Rxh3 {[%clk 0:02:04.6]}
21. Bxh3 {[%clk 0:01:03.4]} 21... a5 {[%clk 0:02:04.7]} 22. Qa4 {[%clk
0:00:58.4]} 22... Bd8 {[%clk 0:01:56]} 23. Kxh2 {[%clk 0:00:31.2]} 23... Nb6
{[%clk 0:01:55.4]} 24. Qa2 {[%clk 0:00:30.8]} 24... Nc4 {[%clk 0:01:53]} 25. Bf2
{[%clk 0:00:31.1]} 25... a4 {[%clk 0:01:53]} 26. Nc1 {[%clk 0:00:16.5]} 26... a3
{[%clk 0:01:30.9]} 27. Bf1 {[%clk 0:00:16]} 27... Nd6 {[%clk 0:01:27.2]} 28. Nd3
{[%clk 0:00:12.7]} 28... Ne4 {[%clk 0:01:26.4]} 29. Be1 {[%clk 0:00:12.4]} 29...
Be7 {[%clk 0:01:22.1]} 30. Bg2 {[%clk 0:00:12.5]} 30... Nd6 {[%clk 0:01:10.3]}
31. Ne5 {[%clk 0:00:08.8]} 31... Kf8 {[%clk 0:01:04.9]} 32. Rb6 {[%clk
0:00:07.7]} 32... Ra6 {[%clk 0:00:59.8]} 33. Rb1 {[%clk 0:00:07.9]} 33... Kg7
{[%clk 0:00:57.8]} 34. Kg1 {[%clk 0:00:08.4]} 34... c5 {[%clk 0:00:54.9]} 35.
Bf2 {[%clk 0:00:07.7]} 35... Nf5 {[%clk 0:00:47.8]} 36. Bf1 {[%clk 0:00:07.3]}
36... Ra7 {[%clk 0:00:45.7]} 37. Rb3 {[%clk 0:00:06.1]} 37... cxd4 {[%clk
0:00:43.4]} 38. cxd4 {[%clk 0:00:07]} 38... Qc1 {[%clk 0:00:40.3]} 39. Nd3
{[%clk 0:00:04.1]} 39... Qd1 {[%clk 0:00:37.3]} 40. Rb1 {[%clk 0:00:03.9]} 40...
Qg4+ {[%clk 0:00:36.7]} 41. Bg2 {[%clk 0:00:04.7]} 41... Rc7 {[%clk 0:00:22.7]}
42. Qd2 {[%clk 0:00:05]} 42... Bh4 {[%clk 0:00:19.7]} 43. Ne5 {[%clk 0:00:04.6]}
43... Bxf2+ {[%clk 0:00:18.8]} 44. Qxf2 {[%clk 0:00:05.5]} 44... Qg3 {[%clk
0:00:18.1]} 45. Qxg3 {[%clk 0:00:03.3]} 45... Nxg3 {[%clk 0:00:19]} 46. Ra1
{[%clk 0:00:04.2]} 46... Rc3 {[%clk 0:00:15.1]} 47. Kf2 {[%clk 0:00:04.8]} 47...
Nf5 {[%clk 0:00:15.1]} 48. Nf3 {[%clk 0:00:05.5]} 48... Ne3 {[%clk 0:00:13.9]}
49. Bf1 {[%clk 0:00:02.8]} 49... Nc2 {[%clk 0:00:13.4]} 50. Ra2 {[%clk
0:00:02.7]} 50... Nb4 {[%clk 0:00:13.4]} 51. Ra1 {[%clk 0:00:03.2]} 51... a2
{[%clk 0:00:12.7]} 52. Be2 {[%clk 0:00:03.1]} 52... Rb3 {[%clk 0:00:12.1]} 53.
Nd2 {[%clk 0:00:02.5]} 53... Rb2 {[%clk 0:00:12.6]} 0-1